fUST/lending_fUST_20240421
["ID","MTS","AMOUNT","RATE_DAILY","PERIOD"]
[323103117,1713665438319,-2016.89,0.00022022,2]
[323103119,1713665438328,-500.0,0.00022022,2]
[323103121,1713665438337,-500.0,0.00022022,2]
[323103123,1713665438346,-505.55123621,0.00022022,2]
[323103125,1713665438355,-496.56331965,0.00022022,2]
[323103127,1713665438364,-500.0,0.00022022,2]
[323103128,1713665438373,-500.0,0.00022022,2]
[323103130,1713665438382,-500.0,0.00022022,2]
[323103132,1713665438391,-500.0,0.00022022,2]
[323103134,1713665438400,-500.0,0.00022022,2]
[323103136,1713665438410,-500.0,0.00022022,2]
[323103138,1713665438419,-500.0,0.00022022,2]
[323103140,1713665438428,-500.0,0.00022022,2]
[323103142,1713665438438,-500.0,0.00022022,2]
[323103144,1713665438447,-503.83505764,0.00022023,2]
[323103146,1713665438456,-500.0,0.00022023,2]
[323103148,1713665438465,-500.0,0.00022023,2]
[323103150,1713665438478,-500.4620107,0.00022023,2]
[323103152,1713665438487,-500.0,0.00022023,2]
[323103154,1713665438496,-177.26891117,0.00022023,2]
[323103156,1713665438505,-198.78413486,0.00022023,2]
[323103170,1713665438514,-500.0,0.00022023,2]
[323103172,1713665438632,-500.0,0.00022023,2]
[323103174,1713665438641,-502.51729193,0.00022023,2]
[323103176,1713665438651,-500.0,0.00022023,2]
[323103178,1713665438660,-500.0,0.00022023,2]
[323103180,1713665438669,-505.86358156,0.00022023,2]
[323103182,1713665438679,-500.0,0.00022023,2]
[323103184,1713665438689,-500.0,0.00022023,2]
[323103186,1713665438698,-500.0,0.00022023,2]
[323103189,1713665438707,-500.0,0.00022023,2]
[323103191,1713665438716,-541.14793866,0.00022023,2]
[323103192,1713665438728,-504.75483394,0.00022023,2]
[323103194,1713665438737,-500.0,0.00022023,2]
[323103196,1713665438746,-500.0,0.00022023,2]
[323103199,1713665438757,-500.0,0.00022023,2]
[323103201,1713665438766,-500.0,0.00022023,2]
[323103203,1713665438775,-505.95654324,0.00022023,2]
[323103205,1713665438784,-500.0,0.00022023,2]
[323103207,1713665438792,-500.0,0.00022023,2]
[323103209,1713665438802,-500.0,0.00022023,2]
[323103211,1713665438811,-500.0,0.00022023,2]
[323103213,1713665438820,-587.09914745,0.00022023,2]
[323103215,1713665438830,-505.56398096,0.00022023,2]
[323103217,1713665438839,-1005.15726249,0.00022023,2]
[323103219,1713665438848,-501.72732864,0.00022023,2]
[323103221,1713665438857,-509.1765878,0.00022023,2]
[323103223,1713665438866,-525.26339244,0.00022023,2]
[323103225,1713665438875,-500.96142743,0.00022023,2]
[323103226,1713665438884,-500.0,0.00022023,2]
[323103228,1713665438893,-869.55,0.00022023,2]
[323103230,1713665438903,-500.0,0.00022023,2]
[323103233,1713665438912,-507.90823416,0.00022023,2]
[323103234,1713665438922,-500.0,0.00022023,2]
[323103236,1713665438931,-500.0,0.00022023,2]
[323103239,1713665438941,-602.17667516,0.00022023,2]
[323103241,1713665438950,-508.10133103,0.00022023,2]
[323103242,1713665438959,-577.93708886,0.00022023,2]
[323103245,1713665438970,-500.0,0.00022023,2]
[323103247,1713665438979,-837.44,0.00022023,2]
[323103248,1713665438988,-603.77596975,0.00022023,2]
[323103251,1713665438997,-504.49760136,0.00022023,2]
[323103253,1713665439008,-505.5477228,0.00022023,2]
[323103255,1713665439021,-500.0,0.00022023,2]
[323103257,1713665439030,-500.0,0.00022023,2]
[323103259,1713665439040,-500.0,0.00022023,2]
[323103260,1713665439049,-505.86824263,0.00022023,2]
[323103261,1713665439059,-512.55452793,0.00022023,2]
[323103262,1713665439068,-501.76409476,0.00022023,2]
[323103263,1713665439077,-500.0,0.00022023,2]
[323103264,1713665439086,-529.27756945,0.00022023,2]
[323103265,1713665439095,-500.0,0.00022023,2]
[323103266,1713665439104,-500.95630734,0.00022023,2]
[323103267,1713665439114,-500.0,0.00022023,2]
[323103268,1713665439123,-505.41552766,0.00022023,2]
[323103269,1713665439133,-436.03527286,0.00022023,2]
[323103270,1713665439142,-500.0,0.00022023,2]
[323103271,1713665439152,-500.0,0.00022023,2]
[323103272,1713665439161,-507.03210194,0.00022023,2]
[323103273,1713665439170,-500.0,0.00022023,2]
[323103274,1713665439181,-500.0,0.00022023,2]
[323103275,1713665439191,-500.0,0.00022023,2]
[323103276,1713665439200,-500.0,0.00022023,2]
[323103277,1713665439209,-500.0,0.00022023,2]
[323103278,1713665439220,-500.0,0.00022023,2]
[323103279,1713665439229,-621.82,0.00022023,2]
[323103280,1713665439238,-509.22632447,0.00022023,2]
[323103281,1713665439247,-500.0,0.00022023,2]
[323103282,1713665439256,-448.83830317,0.00022023,2]
[323103283,1713665439266,-2580.78,0.00022023,2]
[323103284,1713665439275,-171.94624928,0.00022023,2]
[323103285,1713665439284,-975.19,0.00022023,2]
[323103286,1713665439293,-500.0,0.00022023,2]
[323103287,1713665439302,-500.0,0.00022023,2]
[323103289,1713665439312,-500.0,0.00022023,2]
[323103290,1713665439321,-500.0,0.00022023,2]
[323103291,1713665439330,-1260.51,0.00022023,2]
[323103292,1713665439338,-500.0,0.00022023,2]
[323103293,1713665439347,-500.0,0.00022023,2]
[323103294,1713665439356,-151.0,0.00022023,2]
[323103295,1713665439365,-500.0,0.00022023,2]
[323103297,1713665439374,-508.57710714,0.00022023,2]
[323103299,1713665439383,-500.0,0.00022023,2]
[323103301,1713665439392,-500.0,0.00022023,2]
[323103303,1713665439400,-500.0,0.00022023,2]
[323103305,1713665439409,-441.65451695,0.00022023,2]
[323103307,1713665439419,-500.0,0.00022023,2]
[323103310,1713665439429,-500.0,0.00022023,2]
[323103313,1713665439439,-1124.93,0.00022023,2]
[323103315,1713665439448,-1994.81,0.00022023,2]
[323103317,1713665439457,-510.49618961,0.00022023,2]
[323103319,1713665439466,-512.94220683,0.00022023,2]
[323103321,1713665439478,-500.0,0.00022023,2]
[323103323,1713665439486,-500.0,0.00022023,2]
[323103325,1713665439495,-500.0,0.00022023,2]
[323103327,1713665439505,-500.0,0.00022023,2]
[323103329,1713665439514,-500.0,0.00022023,2]
[323103330,1713665439523,-508.61396081,0.00022023,2]
[323103332,1713665439532,-1282.28,0.00022023,2]
[323103334,1713665439542,-500.0,0.00022023,2]
[323103336,1713665439551,-506.95962163,0.00022023,2]
[323103338,1713665439560,-527.11651235,0.00022023,2]
[323103340,1713665439570,-407.13978029,0.00022023,2]
[323103342,1713665439579,-501.10542923,0.00022023,2]
[323103344,1713665439588,-509.03636425,0.00022023,2]
[323103346,1713665439598,-500.0,0.00022023,2]
[323103348,1713665439607,-500.0,0.00022023,2]
[323103350,1713665439617,-500.0,0.00022023,2]
[323103352,1713665439626,-500.0,0.00022023,2]
[323103354,1713665439635,-284.52224066,0.00022023,2]
[323103357,1713665439645,-500.0,0.00022023,2]
[323103360,1713665439654,-500.0,0.00022023,2]
[323103363,1713665439663,-500.0,0.00022023,2]
[323103366,1713665439672,-500.0,0.00022023,2]
[323103369,1713665439682,-500.0,0.00022023,2]
[323103372,1713665439690,-504.8112612,0.00022023,2]
[323103375,1713665439699,-500.0,0.00022023,2]
[323103377,1713665439708,-500.0,0.00022023,2]
[323103380,1713665439717,-500.0,0.00022023,2]
[323103383,1713665439728,-509.407307,0.00022023,2]
[323103386,1713665439737,-500.0,0.00022023,2]
[323103389,1713665439746,-500.0,0.00022023,2]
[323103392,1713665439755,-500.0,0.00022023,2]
[323103395,1713665439765,-500.0,0.00022023,2]
[323103398,1713665439774,-500.68949629,0.00022023,2]
[323103400,1713665439783,-501.65022449,0.00022023,2]
[323103403,1713665439792,-500.0,0.00022023,2]
[323103406,1713665439801,-380.44564795,0.00022023,2]
[323103409,1713665439811,-500.0,0.00022023,2]
[323103412,1713665439820,-500.0,0.00022023,2]
[323103415,1713665439829,-500.0,0.00022023,2]
[323103418,1713665439839,-507.49119836,0.00022023,2]
[323103421,1713665439848,-500.0,0.00022023,2]
[323103424,1713665439857,-500.0,0.00022023,2]
[323103427,1713665439867,-500.0,0.00022023,2]
[323103430,1713665439876,-500.0,0.00022023,2]
[323103433,1713665439885,-500.0,0.00022023,2]
[323103436,1713665439894,-503.80258503,0.00022023,2]
[323103439,1713665439904,-500.0,0.00022023,2]
[323103442,1713665439913,-500.0,0.00022023,2]
[323103445,1713665439922,-177.1510418,0.00022023,2]
[323103447,1713665439931,-500.0,0.00022023,2]
[323103450,1713665439940,-500.0,0.00022023,2]
[323103454,1713665439950,-527.9259086,0.00022023,2]
[323103457,1713665439959,-500.0,0.00022023,2]
[323103460,1713665439970,-500.0,0.00022023,2]
[323103463,1713665439979,-500.0,0.00022023,2]
[323103466,1713665439988,-500.0,0.00022023,2]
[323103469,1713665439997,-500.0,0.00022023,2]
[323103472,1713665440008,-500.0,0.00022023,2]
[323103474,1713665440019,-505.73050993,0.00022023,2]
[323103477,1713665440028,-500.0,0.00022023,2]
[323103481,1713665440038,-503.27887066,0.00022023,2]
[323103483,1713665440047,-620.64,0.00022023,2]
[323103487,1713665440057,-500.0,0.00022023,2]
[323103490,1713665440066,-500.0,0.00022023,2]
[323103492,1713665440075,-500.0,0.00022023,2]
[323103495,1713665440085,-500.0,0.00022023,2]
[323103497,1713665440095,-1860.58,0.00022023,2]
[323103500,1713665440105,-458.38207011,0.00022023,2]
[323103501,1713665440115,-500.0,0.00022023,2]
[323103504,1713665440125,-500.0,0.00022023,2]
[323103506,1713665440133,-509.3588371,0.00022023,2]
[323103507,1713665440143,-845.5,0.00022023,2]
[323103510,1713665440152,-4853.57478282,0.00022023,2]
[323104217,1713665446639,-500.0,0.00022022,2]
[323104219,1713665446652,-6360.45223149,0.00022022,2]
[323104222,1713665446664,-2236.76776851,0.00022022,2]
[323104224,1713665446673,-2356.60521718,0.00022023,2]
[323104226,1713665446682,-500.0,0.00022023,2]
[323104228,1713665446692,-502.66321996,0.00022023,2]
[323104230,1713665446702,-500.04489,0.00022023,2]
[323104232,1713665446712,-503.24404671,0.00022023,2]
[323104233,1713665446721,-390.50374825,0.00022023,2]
[323104235,1713665446732,-500.0,0.00022023,2]
[323104237,1713665446741,-590.23,0.00022023,2]
[323104239,1713665446750,-1660.52,0.00022023,2]
[323104241,1713665446759,-502.5354116,0.00022023,2]
[323104243,1713665446768,-500.04489,0.00022023,2]
[323104245,1713665446778,-529.4,0.00022023,2]
[323104247,1713665446787,-500.0,0.00022023,2]
[323104249,1713665446796,-504.4585122,0.00022023,2]
[323104250,1713665446805,-438.10197705,0.00022023,2]
[323104251,1713665446814,-1890.87,0.00022023,2]
[323104252,1713665446823,-500.0,0.00022023,2]
[323104253,1713665446831,-500.0,0.00022023,2]
[323104254,1713665446840,-500.0,0.00022023,2]
[323104256,1713665446851,-504.72673159,0.00022023,2]
[323104258,1713665446860,-500.0,0.00022023,2]
[323104259,1713665446870,-302.92075017,0.00022023,2]
[323104878,1713665464639,207.0,0.00024479,35]
[323104879,1713665465251,207.0,0.00024469,35]
[323104880,1713665466998,207.0,0.00024459,35]
[323104881,1713665471955,614.13084627,0.0002092,2]
[323104882,1713665481357,500.0,0.00022,2]
[323104883,1713665502730,500.0,0.00022,2]
[323104884,1713665522930,1029.21046798,0.00021921,2]
[323104885,1713665524945,1029.21046795,0.00021922,2]
[323104886,1713665526937,1029.21046795,0.00021922,2]
[323104887,1713665528941,1029.21046795,0.00021923,2]
[323104888,1713665530881,1029.21046795,0.00021923,2]
[323104889,1713665536370,1006.28258767,0.00022,2]
[323104890,1713665632946,2137.2353814,0.00022,2]
[323104891,1713665643869,927.19900592,0.00020912,2]
[323104892,1713665681604,190.58355225,0.00021909,2]
[323104893,1713665692847,68227.26213777,0.00022,2]
[323104894,1713665800715,31285.28113,0.00021,2]
[323104895,1713665810748,5457.42387993,0.00021,2]
[323104896,1713665814876,705.40305203,0.00021,2]
[323104897,1713665816643,189.12046412,0.00021,2]
[323104898,1713665820559,300.0,0.00021,2]
[323104899,1713665821741,300.0,0.00021,2]
[323104900,1713665824645,5457.42387993,0.00021,2]
[323104901,1713665824787,671.0,0.0002419,35]
[323104902,1713665825269,272.47345857,0.00021,2]
[323104903,1713665825415,671.0,0.0002418,35]
[323104904,1713665826923,671.0,0.0002417,35]
[323104905,1713665828616,2098.69136625,0.00021,2]
[323104906,1713665830752,59135.86264102,0.00021,2]
[323104907,1713665830882,430.10972726,0.00021,2]
[323104908,1713665831051,786.37389862,0.00020979,2]
[323104909,1713665832629,189.35896737,0.00021,2]
[323104910,1713665833069,2586.79174796,0.00021,2]
[323104911,1713665836921,154.84515485,0.00021,2]
[323104912,1713665837995,150.0,0.00019923,2]
[323104913,1713665841108,207.80665271,0.00021,2]
[323104914,1713665842614,2112.16262631,0.00021,2]
[323104915,1713665843770,273.28999508,0.00021,2]
[323104916,1713665844760,12584.02547632,0.00021,2]
[323104917,1713665846622,2534.74478811,0.00021,2]
[323104918,1713665848998,2592.2896109,0.00021,2]
[323104919,1713665852909,177.19261343,0.00021,2]
[323104920,1713665858297,358.8048498,0.00021,2]
[323104921,1713665858463,172.6382263,0.00020476,2]
[323104922,1713665864017,2623.01567159,0.00021,2]
[323104923,1713665867028,72533.62668599,0.00021,2]
[323104924,1713665878027,433.92681463,0.00021,2]
[323104925,1713665880479,300.0,0.00021,2]
[323104926,1713665881955,329.5063646,0.00021,2]
[323104927,1713665883439,300.0,0.00021,2]
[323104928,1713665903065,230.252444,0.0002075,2]
[323104929,1713665903938,330.45148216,0.00021,2]
[323104930,1713665908671,4704.52201375,0.00021,2]
[323104931,1713665930109,187.20842213,0.00021,2]
[323104932,1713665940582,300.0,0.00021,2]
[323104933,1713665942863,300.0,0.00021,2]
[323104934,1713665943556,72533.62668599,0.00021,2]
[323104935,1713665950142,187.20842213,0.00021,2]
[323104936,1713666000554,300.0,0.00021,2]
[323104937,1713666001777,300.0,0.00021,2]
[323104938,1713666011099,2768.19318819,0.00021,2]
[323104939,1713666026628,187.20842213,0.00021,2]
[323104940,1713666087650,1442.22865105,0.00021,2]
[323104941,1713666120626,300.0,0.00021,2]
[323104942,1713666122477,300.0,0.00021,2]
[323104943,1713666139413,150.0,0.00019923,2]
[323104944,1713666180501,300.0,0.00021,2]
[323104945,1713666181753,300.0,0.00021,2]
[323104946,1713666238789,492.58336666,0.0002,2]
[323104947,1713666240506,300.0,0.00021,2]
[323104948,1713666241735,300.0,0.00021,2]
[323104949,1713666272423,24088.8350823,0.00020593,2]
[323104950,1713666300656,300.0,0.00021,2]
[323104951,1713666301796,300.0,0.00021,2]
[323104952,1713666352431,171.911098,0.00020682,2]
[323104953,1713666360634,300.0,0.00021,2]
[323104954,1713666363709,300.0,0.00021,2]
[323104955,1713666380067,927.19900592,0.00020818,2]
[323104956,1713666384559,186.766708,0.00020956,2]
[323104957,1713666462716,1442.22865105,0.00021,2]
[323104958,1713666479667,187.20842213,0.00021,2]
[323104959,1713666533232,1442.22865105,0.00021,2]
[323104961,1713666611742,1442.22865105,0.00021,2]
[323104988,1713666632896,-574.69239176,0.00021001,2]
[323104989,1713666632909,-2203.74084877,0.00021001,2]
[323104990,1713666632920,-620.25262601,0.00021455,2]
[323104991,1713666632931,-166.76060821,0.00021817,2]
[323104992,1713666632940,-248.74043492,0.00021914,2]
[323104993,1713666632949,-300.0,0.00021914,2]
[323104994,1713666632959,-300.0,0.00021914,2]
[323104995,1713666632970,-1442.22865105,0.00021914,2]
[323104996,1713666632979,-389.27470078,0.00021915,2]
[323104997,1713666632988,-207.43836202,0.00021915,2]
[323104998,1713666632998,-387.06894385,0.00021915,2]
[323104999,1713666633008,-500.0,0.00021915,2]
[323105000,1713666633017,-500.0,0.00021915,2]
[323105001,1713666633026,-500.0,0.00021915,2]
[323105002,1713666633035,-544.26202431,0.00021915,2]
[323105003,1713666633045,-500.0,0.00021915,2]
[323105004,1713666633056,-500.0,0.00021915,2]
[323105005,1713666633066,-500.0,0.00021915,2]
[323105006,1713666633075,-500.0,0.00021915,2]
[323105007,1713666633084,-557.52327348,0.00021915,2]
[323105008,1713666633093,-198.39420232,0.00021915,2]
[323105009,1713666633102,-21637.49962706,0.00021916,2]
[323105010,1713666633119,-57236.5485643,0.00021916,2]
[323105038,1713666638140,-1125.95180864,0.00021916,2]
[323105039,1713666638150,-500.0,0.00021917,2]
[323105040,1713666638160,-500.0,0.00021917,2]
[323105041,1713666638172,-500.0,0.00021917,2]
[323105042,1713666638181,-500.0,0.00021917,2]
[323105043,1713666638191,-500.0,0.00021917,2]
[323105044,1713666638200,-500.0,0.00021917,2]
[323105046,1713666638210,-500.0,0.00021917,2]
[323105048,1713666638219,-500.0,0.00021917,2]
[323105050,1713666638231,-501.72732864,0.00021917,2]
[323105051,1713666638240,-500.0,0.00021917,2]
[323105052,1713666638251,-509.1765878,0.00021917,2]
[323105053,1713666638261,-869.55,0.00021917,2]
[323105054,1713666638270,-602.17667516,0.00021917,2]
[323105055,1713666638281,-500.0,0.00021917,2]
[323105056,1713666638290,-837.44,0.00021917,2]
[323105057,1713666638300,-500.0,0.00021917,2]
[323105058,1713666638309,-500.95630734,0.00021917,2]
[323105059,1713666638318,-500.0,0.00021917,2]
[323105060,1713666638330,-500.0,0.00021917,2]
[323105061,1713666638341,-500.0,0.00021917,2]
[323105062,1713666638351,-500.0,0.00021917,2]
[323105063,1713666638360,-500.0,0.00021917,2]
[323105064,1713666638371,-500.0,0.00021917,2]
[323105065,1713666638382,-509.22632447,0.00021917,2]
[323105066,1713666638394,-2580.78,0.00021917,2]
[323105067,1713666638404,-2580.78,0.00021917,2]
[323105068,1713666638414,-2580.78,0.00021917,2]
[323105069,1713666638423,-2580.78,0.00021917,2]
[323105070,1713666638434,-975.19,0.00021917,2]
[323105071,1713666638445,-500.0,0.00021917,2]
[323105072,1713666638455,-500.0,0.00021917,2]
[323105073,1713666638465,-171.94624928,0.00021917,2]
[323105074,1713666638477,-500.0,0.00021917,2]
[323105075,1713666638487,-500.0,0.00021917,2]
[323105076,1713666638498,-1260.51,0.00021917,2]
[323105077,1713666638507,-508.57710714,0.00021917,2]
[323105078,1713666638516,-500.0,0.00021917,2]
[323105079,1713666638526,-1124.93,0.00021917,2]
[323105080,1713666638536,-441.65451695,0.00021917,2]
[323105081,1713666638545,-500.0,0.00021917,2]
[323105082,1713666638555,-500.0,0.00021917,2]
[323105083,1713666638565,-1994.81,0.00021917,2]
[323105084,1713666638574,-500.0,0.00021917,2]
[323105085,1713666638584,-500.0,0.00021917,2]
[323105086,1713666638593,-506.95962163,0.00021917,2]
[323105087,1713666638602,-1282.28,0.00021917,2]
[323105088,1713666638611,-407.13978029,0.00021917,2]
[323105089,1713666638622,-509.03636425,0.00021917,2]
[323105090,1713666638632,-501.10542923,0.00021917,2]
[323105091,1713666638642,-500.0,0.00021917,2]
[323105092,1713666638652,-527.11651235,0.00021917,2]
[323105093,1713666638661,-500.0,0.00021917,2]
[323105094,1713666638670,-500.0,0.00021917,2]
[323105095,1713666638679,-500.68949629,0.00021917,2]
[323105096,1713666638688,-500.0,0.00021917,2]
[323105097,1713666638697,-500.0,0.00021917,2]
[323105098,1713666638706,-500.0,0.00021917,2]
[323105099,1713666638715,-500.0,0.00021917,2]
[323105100,1713666638727,-285.22719,0.00021917,2]
[323105101,1713666638736,-285.22719,0.00021917,2]
[323105102,1713666638746,-500.0,0.00021917,2]
[323105103,1713666638842,-500.0,0.00021917,2]
[323105104,1713666638852,-504.8112612,0.00021917,2]
[323105105,1713666638861,-500.0,0.00021917,2]
[323105106,1713666638872,-500.0,0.00021917,2]
[323105107,1713666638882,-620.64,0.00021917,2]
[323105108,1713666638892,-1060.09,0.00021917,2]
[323105109,1713666638904,-503.80258503,0.00021917,2]
[323105110,1713666638913,-500.0,0.00021917,2]
[323105111,1713666638924,-845.5,0.00021917,2]
[323105112,1713666638935,-507.49119836,0.00021917,2]
[323105113,1713666638946,-500.0,0.00021917,2]
[323105114,1713666638959,-500.0,0.00021917,2]
[323105115,1713666638970,-500.0,0.00021917,2]
[323105116,1713666638987,-500.0,0.00021917,2]
[323105117,1713666638996,-352.918005,0.00021917,2]
[323105118,1713666639005,-500.0,0.00021917,2]
[323105119,1713666639014,-352.918005,0.00021917,2]
[323105120,1713666639024,-500.0,0.00021917,2]
[323105121,1713666639034,-638.26830152,0.00021917,2]
[323105122,1713666639043,-500.0,0.00021917,2]
[323105123,1713666639052,-2932.58,0.00021917,2]
[323105124,1713666639062,-516.85908464,0.00021917,2]
[323105125,1713666639071,-7111.99,0.00021917,2]
[323105126,1713666639081,-7111.99,0.00021917,2]
[323105127,1713666639091,-7111.99,0.00021917,2]
[323105128,1713666639101,-607.15,0.00021917,2]
[323105129,1713666639111,-1860.58,0.00021917,2]
[323105130,1713666639120,-1860.58,0.00021917,2]
[323105131,1713666639130,-500.0,0.00021917,2]
[323105132,1713666639139,-507.34,0.00021917,2]
[323105133,1713666639148,-500.0,0.00021917,2]
[323105134,1713666639157,-500.0,0.00021917,2]
[323105135,1713666639166,-500.0,0.00021917,2]
[323105136,1713666639175,-545.33446551,0.00021917,2]
[323105137,1713666639185,-1591.33,0.00021917,2]
[323105138,1713666639197,-500.0,0.00021917,2]
[323105139,1713666639206,-500.0,0.00021917,2]
[323105140,1713666639217,-500.0,0.00021917,2]
[323105141,1713666639230,-510.25823631,0.00021917,2]
[323105142,1713666639239,-500.0,0.00021917,2]
[323105143,1713666639249,-3687.37,0.00021917,2]
[323105144,1713666639261,-1812.08,0.00021917,2]
[323105145,1713666639271,-500.0,0.00021917,2]
[323105146,1713666639280,-3023.84,0.00021917,2]
[323105147,1713666639291,-500.0,0.00021917,2]
[323105148,1713666639300,-500.0,0.00021917,2]
[323105149,1713666639310,-500.0,0.00021917,2]
[323105150,1713666639319,-500.0,0.00021917,2]
[323105151,1713666639329,-500.0,0.00021917,2]
[323105152,1713666639338,-590.40921536,0.00021917,2]
[323105153,1713666639347,-500.0,0.00021917,2]
[323105154,1713666639356,-502.42714565,0.00021917,2]
[323105155,1713666639365,-500.0,0.00021917,2]
[323105156,1713666639374,-2382.79,0.00021917,2]
[323105157,1713666639386,-500.0,0.00021917,2]
[323105158,1713666639395,-500.0,0.00021917,2]
[323105159,1713666639404,-500.0,0.00021917,2]
[323105160,1713666639414,-500.0,0.00021917,2]
[323105161,1713666639423,-500.0,0.00021917,2]
[323105162,1713666639433,-500.0,0.00021917,2]
[323105163,1713666639442,-500.0,0.00021917,2]
[323105164,1713666639451,-1727.18,0.00021917,2]
[323105165,1713666639461,-502.24278635,0.00021917,2]
[323105166,1713666639478,-500.0,0.00021917,2]
[323105167,1713666639488,-518.76254653,0.00021917,2]
[323105168,1713666639497,-505.55123621,0.00021917,2]
[323105169,1713666639506,-983.34,0.00021917,2]
[323105170,1713666639516,-496.56331965,0.00021917,2]
[323105171,1713666639525,-500.0,0.00021917,2]
[323105172,1713666639535,-1264.109014,0.00021917,2]
[323105173,1713666639544,-502.59862632,0.00021917,2]
[323105174,1713666639554,-500.0,0.00021917,2]
[323105175,1713666639565,-1264.109014,0.00021917,2]
[323105176,1713666639574,-500.0,0.00021917,2]
[323105177,1713666639584,-502.42381603,0.00021917,2]
[323105178,1713666639593,-501.65300556,0.00021917,2]
[323105179,1713666639602,-391.73583399,0.00021917,2]
[323105180,1713666639613,-509.407307,0.00021917,2]
[323105181,1713666639622,-500.0,0.00021917,2]
[323105182,1713666639633,-500.0,0.00021917,2]
[323105183,1713666639642,-380.44564795,0.00021917,2]
[323105184,1713666639651,-151.0,0.00021917,2]
[323105185,1713666639660,-500.0,0.00021917,2]
[323105186,1713666639669,-841.38,0.00021917,2]
[323105187,1713666639679,-500.0,0.00021917,2]
[323105188,1713666639688,-51222.08,0.00021917,2]
[323105189,1713666639697,-177.26891117,0.00021917,2]
[323105190,1713666639706,-500.4620107,0.00021917,2]
[323105191,1713666639715,-899.14,0.00021917,2]
[323105192,1713666639725,-199.58755225,0.00021917,2]
[323105193,1713666639734,-500.0,0.00021917,2]
[323105194,1713666639743,-500.0,0.00021917,2]
[323105195,1713666639752,-500.0,0.00021917,2]
[323105196,1713666639761,-500.0,0.00021917,2]
[323105197,1713666639770,-2016.89,0.00021917,2]
[323105198,1713666639779,-8612.8,0.00021917,2]
[323105199,1713666639788,-502.51729193,0.00021917,2]
[323105200,1713666639797,-500.0,0.00021917,2]
[323105201,1713666639807,-500.0,0.00021917,2]
[323105202,1713666639817,-504.8838219,0.00021917,2]
[323105203,1713666639826,-500.0,0.00021917,2]
[323105204,1713666639835,-500.0,0.00021917,2]
[323105205,1713666639844,-527.9259086,0.00021917,2]
[323105206,1713666639853,-500.0,0.00021995,2]
[323105207,1713666639863,-319.458457,0.00021995,2]
[323105208,1713666639871,-319.458457,0.00021995,2]
[323105209,1713666639880,-7111.99,0.00021995,2]
[323105210,1713666639890,-212.525031,0.00021995,2]
[323105211,1713666639899,-1860.58,0.00021995,2]
[323105212,1713666639909,-450.040401,0.00021995,2]
[323105214,1713666639919,-450.040401,0.00021995,2]
[323105216,1713666639928,-227.009928,0.00021995,2]
[323105217,1713666639937,-227.009928,0.00021995,2]
[323105218,1713666639947,-151.0,0.00021995,2]
[323105219,1713666639956,-151.0,0.00021995,2]
[323105220,1713666639966,-1264.109014,0.00021995,2]
[323105221,1713666639977,-1264.109014,0.00021995,2]
[323105222,1713666639986,-151.0,0.00021995,2]
[323105223,1713666639995,-45371.81607995,0.00021996,2]
[323105224,1713666640005,-500.0,0.00021996,2]
[323105225,1713666640014,-235.580021,0.00021996,2]
[323105227,1713666640023,-151.0,0.00021996,2]